[Event "FIDE Women's Grand Swiss 2023"]
[Site "Villa Marina, Douglas, Isle of Man"]
[Date "2023.10.25"]
[Round "1.1"]
[White "Matnadze Bujiashvili, Ann"]
[Black "Goryachkina, Aleksandra"]
[Result "1/2-1/2"]
[WhiteElo "2400"]
[BlackElo "2558"]
[EventDate "2023.10.25"]
[ECO "D23"]
[PlyCount "131"]
[BlackFideId "4147103"]
[TimeControl "40/90 + 30 + 30s/move"]
[WhiteFideId "13601377"]
[ePGN "0.1;DGT LiveChess/2.2.5"]

1.d4 {[%clk 01:30:54] [%emt 00:00:05]} 1...d5 {[%clk 01:30:40] [%emt 00:00:20]} 
2.Nf3 {[%clk 01:31:04] [%emt 00:00:21]} 2...Nf6 {[%clk 01:30:48] [%emt
00:00:22]} 3.c4 {[%clk 01:31:02] [%emt 00:00:32]} 3...c6 {[%clk 01:30:42] [%emt
00:00:35]} 4.Qb3 {[%clk 01:31:05] [%emt 00:00:27]} 4...dxc4 {[%clk 01:30:24]
[%emt 00:00:49]} 5.Qxc4 {[%clk 01:31:29] [%emt 00:00:06]} 5...Bf5 {[%clk
01:30:19] [%emt 00:00:34]} 6.Nc3 {[%clk 01:30:55] [%emt 00:01:05]} 6...e6 
{[%clk 01:26:49] [%emt 00:04:00]} 7.Bg5 {[%clk 01:28:53] [%emt 00:02:31]} 
7...Qb6 {[%clk 01:20:08] [%emt 00:07:12]} 8.Na4 {[%clk 01:15:08] [%emt
00:14:15]} 8...Qa5+ {[%clk 01:15:34] [%emt 00:05:04]} 9.Bd2 {[%clk 01:14:38]
[%emt 00:00:59]} 9...Qd5 {[%clk 01:10:22] [%emt 00:05:42]} 10.Qxd5 {[%clk
01:09:01] [%emt 00:06:07]} 10...exd5 {[%clk 01:07:44] [%emt 00:03:09]} 11.Rc1 
{[%clk 01:07:12] [%emt 00:02:19]} 11...Nbd7 {[%clk 01:05:07] [%emt 00:03:07]} 
12.e3 {[%clk 01:05:09] [%emt 00:02:33]} 12...Be7 {[%clk 01:04:11] [%emt
00:01:25]} 13.Be2 {[%clk 00:59:51] [%emt 00:05:48]} 13...Ne4 {[%clk 01:02:37]
[%emt 00:02:05]} 14.Ba5 {[%clk 00:54:47] [%emt 00:05:34]} 14...Nb6 {[%clk
00:58:16] [%emt 00:04:51]} 15.Nc3 {[%clk 00:51:40] [%emt 00:03:37]} 15...Nd6 
{[%clk 00:54:07] [%emt 00:04:39]} 16.Bb4 {[%clk 00:50:20] [%emt 00:01:49]} 
16...a5 {[%clk 00:53:16] [%emt 00:01:22]} 17.Bc5 {[%clk 00:48:40] [%emt
00:02:10]} 17...Nd7 {[%clk 00:51:33] [%emt 00:02:14]} 18.Ba3 {[%clk 00:45:15]
[%emt 00:03:54]} 18...b5 {[%clk 00:46:35] [%emt 00:05:27]} 19.Bxd6 {[%clk
00:45:23] [%emt 00:00:23]} 19...Bxd6 {[%clk 00:47:03] [%emt 00:00:02]} 20.O-O 
{[%clk 00:41:25] [%emt 00:04:27]} 20...O-O {[%clk 00:46:38] [%emt 00:00:55]} 
21.a4 {[%clk 00:39:02] [%emt 00:02:54]} 21...b4 {[%clk 00:44:31] [%emt
00:02:37]} 22.Nb1 {[%clk 00:38:12] [%emt 00:01:20]} 22...Rfc8 {[%clk 00:37:18]
[%emt 00:07:43]} 23.Nbd2 {[%clk 00:38:05] [%emt 00:00:37]} 23...c5 {[%clk
00:31:32] [%emt 00:06:16]} 24.Bb5 {[%clk 00:34:28] [%emt 00:04:07]} 24...Rc7 
{[%clk 00:23:48] [%emt 00:08:14]} 25.dxc5 {[%clk 00:32:07] [%emt 00:02:51]} 
25...Nxc5 {[%clk 00:24:12] [%emt 00:00:06]} 26.Nd4 {[%clk 00:32:07] [%emt
00:00:29]} 26...Bg6 {[%clk 00:23:04] [%emt 00:01:38]} 27.f4 {[%clk 00:29:10]
[%emt 00:03:27]} 27...Rac8 {[%clk 00:19:23] [%emt 00:04:11]} 28.f5 {[%clk
00:27:38] [%emt 00:02:02]} 28...Bh5 {[%clk 00:19:42] [%emt 00:00:11]} 29.h3 
{[%clk 00:23:58] [%emt 00:04:10]} 29...f6 {[%clk 00:16:32] [%emt 00:03:40]} 
30.g4 {[%clk 00:21:24] [%emt 00:03:04]} 30...Bf7 {[%clk 00:16:55] [%emt
00:00:07]} 31.Rfd1 {[%clk 00:19:20] [%emt 00:02:34]} 31...h5 {[%clk 00:16:22]
[%emt 00:01:03]} 32.Kg2 {[%clk 00:17:19] [%emt 00:02:31]} 32...Kf8 {[%clk
00:14:11] [%emt 00:02:42]} 33.N2f3 {[%clk 00:09:17] [%emt 00:08:32]} 33...Ke7 
{[%clk 00:11:05] [%emt 00:03:35]} 34.g5 {[%clk 00:07:57] [%emt 00:01:50]} 
34...fxg5 {[%clk 00:09:05] [%emt 00:02:31]} 35.Nxg5 {[%clk 00:07:27] [%emt
00:01:00]} 35...Bg8 {[%clk 00:07:39] [%emt 00:01:56]} 36.h4 {[%clk 00:02:15]
[%emt 00:05:41]} 36...Kf6 {[%clk 00:07:13] [%emt 00:00:56]} 37.Rf1 {[%clk
00:01:05] [%emt 00:01:41]} 37...Ne4 {[%clk 00:03:20] [%emt 00:04:23]} 38.Rxc7 
{[%clk 00:00:52] [%emt 00:00:43]} 38...Rxc7 {[%clk 00:03:49] [%emt 00:00:01]} 
39.Bd3 {[%clk 00:00:56] [%emt 00:00:26]} 39...Nc5 {[%clk 00:02:36] [%emt
00:01:42]} 40.Bb5 {[%clk 00:00:45] [%emt 00:00:42]} 40...Be5 {[%clk 00:01:15]
[%emt 00:01:51]} 41.Be8 {[%clk 00:17:07] [%emt 00:14:08]} 41...Bxd4 {[%clk
00:26:09] [%emt 00:05:35]} 42.exd4 {[%clk 00:17:35] [%emt 00:00:02]} 42...Ne4 
{[%clk 00:23:32] [%emt 00:03:07]} 43.Nxe4+ {[%clk 00:16:03] [%emt 00:02:02]} 
43...dxe4 {[%clk 00:24:00] [%emt 00:00:02]} 44.Bxh5 {[%clk 00:16:20] [%emt
00:00:14]} 44...Bd5 {[%clk 00:20:12] [%emt 00:04:18]} 45.Kg3 {[%clk 00:15:25]
[%emt 00:01:25]} 45...Rc2 {[%clk 00:18:13] [%emt 00:02:28]} 46.Kf4 {[%clk
00:15:25] [%emt 00:00:30]} 46...Rh2 {[%clk 00:13:58] [%emt 00:04:45]} 47.Bg4 
{[%clk 00:15:00] [%emt 00:00:56]} 47...b3 {[%clk 00:11:35] [%emt 00:02:53]} 
48.Rg1 {[%clk 00:09:48] [%emt 00:05:41]} 48...Rxb2 {[%clk 00:08:58] [%emt
00:03:08]} 49.Bh5 {[%clk 00:10:11] [%emt 00:00:07]} 49...Rf2+ {[%clk 00:08:49]
[%emt 00:00:38]} 50.Ke3 {[%clk 00:10:29] [%emt 00:00:12]} 50...Rxf5 {[%clk
00:09:00] [%emt 00:00:20]} 51.Bg4 {[%clk 00:09:54] [%emt 00:01:04]} 51...Rf3+ 
{[%clk 00:04:01] [%emt 00:05:28]} 52.Bxf3 {[%clk 00:10:22] [%emt 00:00:02]} 
52...exf3 {[%clk 00:04:26] [%emt 00:00:05]} 53.h5 {[%clk 00:06:23] [%emt
00:04:29]} 53...Bf7 {[%clk 00:03:42] [%emt 00:01:14]} 54.Rc1 {[%clk 00:04:02]
[%emt 00:02:51]} 54...Be8 {[%clk 00:02:27] [%emt 00:01:45]} 55.Rc8 {[%clk
00:03:06] [%emt 00:01:26]} 55...Bxa4 {[%clk 00:02:34] [%emt 00:00:24]} 56.Rb8 
{[%clk 00:03:13] [%emt 00:00:23]} 56...Ke6 {[%clk 00:02:24] [%emt 00:00:40]} 
57.Kxf3 {[%clk 00:03:17] [%emt 00:00:26]} 57...Kd5 {[%clk 00:01:16] [%emt
00:01:38]} 58.Ke3 {[%clk 00:03:33] [%emt 00:00:13]} 58...Kc4 {[%clk 00:01:36]
[%emt 00:00:10]} 59.Kd2 {[%clk 00:02:17] [%emt 00:01:46]} 59...Kxd4 {[%clk
00:01:40] [%emt 00:00:27]} 60.Rb7 {[%clk 00:02:11] [%emt 00:00:36]} 60...Be8 
{[%clk 00:01:08] [%emt 00:01:01]} 61.Rxb3 {[%clk 00:02:23] [%emt 00:00:18]} 
61...Bxh5 {[%clk 00:01:06] [%emt 00:00:32]} 62.Rb5 {[%clk 00:02:12] [%emt
00:00:41]} 62...Bf7 {[%clk 00:01:03] [%emt 00:00:34]} 63.Rxa5 {[%clk 00:02:36]
[%emt 00:00:05]} 63...g6 {[%clk 00:01:26] [%emt 00:00:07]} 64.Ra7 {[%clk
00:02:48] [%emt 00:00:17]} 64...Be6 {[%clk 00:01:50] [%emt 00:00:07]} 65.Rg7 
{[%clk 00:03:03] [%emt 00:00:15]} 65...Bf5 {[%clk 00:02:19] [%emt 00:00:02]} 
66.Ke2 {[%clk 00:03:26] [%emt 00:00:07]} 1/2-1/2

[Event "FIDE Women's Grand Swiss 2023"]
[Site "Villa Marina, Douglas, Isle of Man"]
[Date "2023.10.26"]
[Round "2.7"]
[White "Sandu, Mihaela"]
[Black "Bulmaga, Irina"]
[Result "0-1"]
[WhiteElo "2298"]
[BlackElo "2423"]
[EventDate "2023.10.25"]
[ECO "C74"]
[PlyCount "72"]
[BlackFideId "13903063"]
[TimeControl "40/90 + 30 + 30s/move"]
[WhiteFideId "1204327"]

1.e4 {[%clk 01:30:57] [%emt 00:00:03]} 1...e5 {[%clk 01:30:52] [%emt 00:00:08]} 
2.Nf3 {[%clk 01:31:23] [%emt 00:00:04]} 2...Nc6 {[%clk 01:31:15] [%emt
00:00:06]} 3.Bb5 {[%clk 01:31:48] [%emt 00:00:06]} 3...a6 {[%clk 01:31:32] [%emt
00:00:13]} 4.Ba4 {[%clk 01:32:13] [%emt 00:00:04]} 4...d6 {[%clk 01:31:50] [%emt
00:00:12]} 5.c3 {[%clk 01:29:06] [%emt 00:03:38]} 5...f5 {[%clk 01:31:56] [%emt
00:00:24]} 6.d4 {[%clk 01:27:54] [%emt 00:01:42]} 6...fxe4 {[%clk 01:31:22]
[%emt 00:01:04]} 7.Ng5 {[%clk 01:23:24] [%emt 00:05:01]} 7...exd4 {[%clk
01:14:40] [%emt 00:17:11]} 8.O-O {[%clk 01:17:04] [%emt 00:06:50]} 8...d5 
{[%clk 01:11:35] [%emt 00:03:35]} 9.c4 {[%clk 01:15:39] [%emt 00:01:56]} 9...b5 
{[%clk 01:04:56] [%emt 00:07:09]} 10.cxb5 {[%clk 01:03:55] [%emt 00:12:14]} 
10...axb5 {[%clk 01:01:14] [%emt 00:04:11]} 11.Bxb5 {[%clk 01:02:57] [%emt
00:01:28]} 11...Ne7 {[%clk 00:47:25] [%emt 00:14:19]} 12.Nxe4 {[%clk 00:45:40]
[%emt 00:17:48]} 12...dxe4 {[%clk 00:37:36] [%emt 00:10:19]} 13.Qh5+ {[%clk
00:45:57] [%emt 00:00:12]} 13...g6 {[%clk 00:35:07] [%emt 00:02:58]} 14.Qe5 
{[%clk 00:46:10] [%emt 00:00:18]} 14...Bb7 {[%clk 00:34:55] [%emt 00:00:42]} 
15.Qxh8 {[%clk 00:43:55] [%emt 00:02:44]} 15...Qd5 {[%clk 00:33:27] [%emt
00:01:59]} 16.Na3 {[%clk 00:43:41] [%emt 00:00:45]} 16...O-O-O {[%clk 00:27:24]
[%emt 00:06:32]} 17.Qxh7 {[%clk 00:44:01] [%emt 00:00:10]} 17...Ne5 {[%clk
00:25:45] [%emt 00:02:09]} 18.Bf4 {[%clk 00:42:33] [%emt 00:01:58]} 18...Nf5 
{[%clk 00:22:08] [%emt 00:04:07]} 19.Bc4 {[%clk 00:39:32] [%emt 00:03:32]} 
19...Qa5 {[%clk 00:19:20] [%emt 00:03:17]} 20.Be6+ {[%clk 00:29:24] [%emt
00:10:38]} 20...Kb8 {[%clk 00:19:05] [%emt 00:00:46]} 21.Nc4 {[%clk 00:29:37]
[%emt 00:00:16]} 21...Nxc4 {[%clk 00:18:22] [%emt 00:01:13]} 22.Bxc4 {[%clk
00:30:05] [%emt 00:00:03]} 22...Bd6 {[%clk 00:12:03] [%emt 00:06:48]} 23.b4 
{[%clk 00:16:05] [%emt 00:14:30]} 23...Qb6 {[%clk 00:11:22] [%emt 00:01:11]} 
24.Bg5 {[%clk 00:16:00] [%emt 00:00:34]} 24...Rf8 {[%clk 00:10:54] [%emt
00:00:59]} 25.Rac1 {[%clk 00:15:43] [%emt 00:00:47]} 25...Be5 {[%clk 00:10:23]
[%emt 00:01:01]} 26.h3 {[%clk 00:15:09] [%emt 00:01:04]} 26...Bg7 {[%clk
00:05:53] [%emt 00:05:00]} 27.Bg8 {[%clk 00:09:46] [%emt 00:05:53]} 27...Qd6 
{[%clk 00:06:08] [%emt 00:00:15]} 28.Rc5 {[%clk 00:09:16] [%emt 00:01:00]} 
28...e3 {[%clk 00:05:43] [%emt 00:00:54]} 29.fxe3 {[%clk 00:08:47] [%emt
00:01:00]} 29...Qg3 {[%clk 00:05:32] [%emt 00:00:41]} 30.Bd5 {[%clk 00:08:31]
[%emt 00:00:47]} 30...Qxg5 {[%clk 00:04:28] [%emt 00:01:33]} 31.Qxg7 {[%clk
00:01:44] [%emt 00:07:17]} 31...Nxg7 {[%clk 00:01:40] [%emt 00:03:19]} 32.Rxf8+ 
{[%clk 00:02:07] [%emt 00:00:07]} 32...Ka7 {[%clk 00:01:47] [%emt 00:00:22]} 
33.Ra5+ {[%clk 00:00:37] [%emt 00:02:00]} 33...Kb6 {[%clk 00:02:06] [%emt
00:00:11]} 34.Rb8 {[%clk 00:00:37] [%emt 00:00:30]} 34...Qxe3+ {[%clk 00:02:18]
[%emt 00:00:18]} 35.Kf1 {[%clk 00:00:54] [%emt 00:00:13]} 35...c6 {[%clk
00:02:04] [%emt 00:00:43]} 36.Bf3 {[%clk 00:01:12] [%emt 00:00:12]} 36...Nf5 
{[%clk 00:01:53] [%emt 00:00:41]} 0-1

[Event "FIDE Women's Grand Swiss 2023"]
[Site "Villa Marina, Douglas, Isle of Man"]
[Date "2023.10.26"]
[Round "2.17"]
[White "Danielian, Elina"]
[Black "Mkrtchyan, Mariam"]
[Result "1/2-1/2"]
[WhiteElo "2416"]
[BlackElo "2343"]
[EventDate "2023.10.25"]
[ECO "D35"]
[PlyCount "208"]
[BlackFideId "13310828"]
[TimeControl "40/90 + 30 + 30s/move"]
[WhiteFideId "13300210"]

1.d4 {[%clk 01:30:56] [%emt 00:00:03]} 1...d5 {[%clk 01:30:51] [%emt 00:00:09]} 
2.c4 {[%clk 01:31:03] [%emt 00:00:24]} 2...e6 {[%clk 01:31:15] [%emt 00:00:06]} 
3.Nc3 {[%clk 01:30:12] [%emt 00:01:20]} 3...Nf6 {[%clk 01:31:37] [%emt
00:00:09]} 4.Nf3 {[%clk 01:30:07] [%emt 00:00:35]} 4...Nbd7 {[%clk 01:31:59]
[%emt 00:00:08]} 5.Bf4 {[%clk 01:28:43] [%emt 00:01:53]} 5...dxc4 {[%clk
01:31:19] [%emt 00:01:11]} 6.e3 {[%clk 01:29:06] [%emt 00:00:07]} 6...Bd6 
{[%clk 01:30:40] [%emt 00:01:08]} 7.Bg3 {[%clk 01:26:53] [%emt 00:02:43]} 
7...Nb6 {[%clk 01:30:49] [%emt 00:00:22]} 8.Bxc4 {[%clk 01:26:43] [%emt
00:00:40]} 8...Nxc4 {[%clk 01:31:13] [%emt 00:00:06]} 9.Qa4+ {[%clk 01:27:10]
[%emt 00:00:03]} 9...Bd7 {[%clk 01:31:37] [%emt 00:00:06]} 10.Qxc4 {[%clk
01:27:34] [%emt 00:00:05]} 10...Bc6 {[%clk 01:32:03] [%emt 00:00:04]} 11.Ne5 
{[%clk 01:21:07] [%emt 00:06:57]} 11...Bxe5 {[%clk 01:30:53] [%emt 00:01:40]} 
12.Bxe5 {[%clk 01:16:46] [%emt 00:04:52]} 12...Nd7 {[%clk 01:30:51] [%emt
00:00:32]} 13.Bg3 {[%clk 01:01:35] [%emt 00:15:41]} 13...Bxg2 {[%clk 01:27:46]
[%emt 00:03:35]} 14.Rg1 {[%clk 01:00:38] [%emt 00:01:27]} 14...Bc6 {[%clk
01:27:41] [%emt 00:00:35]} 15.e4 {[%clk 00:58:12] [%emt 00:02:55]} 15...O-O 
{[%clk 01:22:53] [%emt 00:05:18]} 16.O-O-O {[%clk 00:57:32] [%emt 00:01:10]} 
16...Nb6 {[%clk 01:20:35] [%emt 00:02:49]} 17.Qc5 {[%clk 00:47:13] [%emt
00:10:49]} 17...Rc8 {[%clk 01:17:32] [%emt 00:03:33]} 18.Qe5 {[%clk 00:37:48]
[%emt 00:09:54]} 18...Nc4 {[%clk 00:56:31] [%emt 00:21:32]} 19.Qf4 {[%clk
00:26:11] [%emt 00:12:06]} 19...Qe7 {[%clk 00:54:15] [%emt 00:02:46]} 20.Bh4 
{[%clk 00:23:41] [%emt 00:03:00]} 20...f6 {[%clk 00:52:44] [%emt 00:02:02]} 
21.Qg3 {[%clk 00:16:16] [%emt 00:07:54]} 21...Rf7 {[%clk 00:51:24] [%emt
00:01:50]} 22.f4 {[%clk 00:16:06] [%emt 00:00:40]} 22...Qf8 {[%clk 00:47:30]
[%emt 00:04:24]} 23.Kb1 {[%clk 00:07:21] [%emt 00:09:16]} 23...b5 {[%clk
00:45:05] [%emt 00:02:55]} 24.d5 {[%clk 00:06:23] [%emt 00:01:27]} 24...exd5 
{[%clk 00:44:31] [%emt 00:01:04]} 25.Nxd5 {[%clk 00:06:45] [%emt 00:00:09]} 
25...Bxd5 {[%clk 00:38:21] [%emt 00:06:40]} 26.Rxd5 {[%clk 00:06:50] [%emt
00:00:26]} 26...c6 {[%clk 00:36:37] [%emt 00:02:13]} 27.Rdd1 {[%clk 00:07:00]
[%emt 00:00:20]} 27...Re8 {[%clk 00:36:15] [%emt 00:00:51]} 28.Qd3 {[%clk
00:04:41] [%emt 00:02:49]} 28...Qb4 {[%clk 00:35:23] [%emt 00:01:23]} 29.b3 
{[%clk 00:02:55] [%emt 00:02:16]} 29...Nb6 {[%clk 00:34:53] [%emt 00:01:00]} 
30.Qd4 {[%clk 00:00:35] [%emt 00:02:49]} 30...Rxe4 {[%clk 00:23:59] [%emt
00:11:24]} 31.Qxb4 {[%clk 00:00:33] [%emt 00:00:33]} 31...Rxb4 {[%clk 00:24:24]
[%emt 00:00:05]} 32.Rd8+ {[%clk 00:00:43] [%emt 00:00:20]} 32...Rf8 {[%clk
00:24:51] [%emt 00:00:03]} 33.Rd6 {[%clk 00:01:08] [%emt 00:00:05]} 33...Rxf4 
{[%clk 00:20:59] [%emt 00:04:21]} 34.Bg3 {[%clk 00:01:35] [%emt 00:00:03]} 
34...Re4 {[%clk 00:20:42] [%emt 00:00:48]} 35.Rxc6 {[%clk 00:02:02] [%emt
00:00:03]} 35...Rc8 {[%clk 00:18:57] [%emt 00:02:14]} 36.Rxc8+ {[%clk 00:00:47]
[%emt 00:01:45]} 36...Nxc8 {[%clk 00:19:22] [%emt 00:00:05]} 37.Rc1 {[%clk
00:01:06] [%emt 00:00:11]} 37...Ne7 {[%clk 00:18:56] [%emt 00:00:57]} 38.Rc7 
{[%clk 00:01:18] [%emt 00:00:18]} 38...a6 {[%clk 00:18:30] [%emt 00:00:56]} 
39.Ra7 {[%clk 00:01:17] [%emt 00:00:32]} 39...Re6 {[%clk 00:18:41] [%emt
00:00:18]} 40.a4 {[%clk 00:01:09] [%emt 00:00:37]} 40...bxa4 {[%clk 00:17:22]
[%emt 00:01:50]} 41.bxa4 {[%clk 00:01:38]} 41...g5 {[%clk 00:16:56] [%emt
00:00:56]} 42.a5 {[%clk 00:01:42] [%emt 00:00:26]} 42...f5 {[%clk 00:12:14]
[%emt 00:05:11]} 43.Bf2 {[%clk 00:29:23] [%emt 00:02:49]} 43...Nd5 {[%clk
00:40:45] [%emt 00:02:00]} 44.Bd4 {[%clk 00:24:48] [%emt 00:05:04]} 44...h6 
{[%clk 00:40:28] [%emt 00:00:48]} 45.Kc2 {[%clk 00:22:56] [%emt 00:02:22]} 
45...f4 {[%clk 00:40:02] [%emt 00:00:55]} 46.Rg7+ {[%clk 00:17:18] [%emt
00:06:08]} 46...Kf8 {[%clk 00:40:26] [%emt 00:00:06]} 47.Rd7 {[%clk 00:17:46]
[%emt 00:00:02]} 47...Nb4+ {[%clk 00:38:41] [%emt 00:02:15]} 48.Kd2 {[%clk
00:18:09] [%emt 00:00:06]} 48...Nc6 {[%clk 00:37:55] [%emt 00:01:18]} 49.Bb6 
{[%clk 00:18:19] [%emt 00:00:20]} 49...f3 {[%clk 00:37:07] [%emt 00:01:17]} 
50.h3 {[%clk 00:12:16] [%emt 00:06:33]} 50...Ne5 {[%clk 00:27:25] [%emt
00:10:13]} 51.Bc5+ {[%clk 00:12:42] [%emt 00:00:04]} 51...Ke8 {[%clk 00:27:15]
[%emt 00:00:40]} 52.Rd5 {[%clk 00:03:41] [%emt 00:09:31]} 52...Ng6 {[%clk
00:26:27] [%emt 00:01:18]} 53.Rd3 {[%clk 00:00:52] [%emt 00:03:19]} 53...Ne5 
{[%clk 00:19:26] [%emt 00:07:30]} 54.Rd5 {[%clk 00:01:19] [%emt 00:00:04]} 
54...Nc4+ {[%clk 00:17:21] [%emt 00:02:36]} 55.Kd3 {[%clk 00:01:08] [%emt
00:00:40]} 55...Nxa5 {[%clk 00:16:28] [%emt 00:01:23]} 56.Rf5 {[%clk 00:01:31]
[%emt 00:00:07]} 56...Nc6 {[%clk 00:16:07] [%emt 00:00:51]} 57.Kc4 {[%clk
00:00:34] [%emt 00:01:27]} 57...Rg6 {[%clk 00:10:27] [%emt 00:06:10]} 58.Kc3 
{[%clk 00:00:34] [%emt 00:00:30]} 58...g4 {[%clk 00:08:48] [%emt 00:02:09]} 
59.hxg4 {[%clk 00:00:53] [%emt 00:00:11]} 59...Rxg4 {[%clk 00:09:03] [%emt
00:00:15]} 60.Be3 {[%clk 00:00:44] [%emt 00:00:38]} 60...Rg6 {[%clk 00:07:21]
[%emt 00:02:13]} 61.Rxf3 {[%clk 00:00:47] [%emt 00:00:27]} 61...Ne5 {[%clk
00:07:32] [%emt 00:00:19]} 62.Rf5 {[%clk 00:00:54] [%emt 00:00:23]} 62...Ng4 
{[%clk 00:07:31] [%emt 00:00:31]} 63.Bd2 {[%clk 00:00:51] [%emt 00:00:33]} 
63...Rd6 {[%clk 00:06:48] [%emt 00:01:13]} 64.Bf4 {[%clk 00:00:43] [%emt
00:00:37]} 64...Rb6 {[%clk 00:06:58] [%emt 00:00:21]} 65.Kc4 {[%clk 00:00:35]
[%emt 00:00:38]} 65...Ke7 {[%clk 00:06:26] [%emt 00:01:01]} 66.Rh5 {[%clk
00:00:35] [%emt 00:00:30]} 66...Rf6 {[%clk 00:02:57] [%emt 00:04:00]} 67.Bd2 
{[%clk 00:00:42] [%emt 00:00:23]} 67...Ke6 {[%clk 00:01:36] [%emt 00:01:50]} 
68.Kb4 {[%clk 00:00:52] [%emt 00:00:21]} 68...Kf7 {[%clk 00:00:46] [%emt
00:01:21]} 69.Rh4 {[%clk 00:00:56] [%emt 00:00:25]} 69...Rd6 {[%clk 00:01:13]
[%emt 00:00:03]} 70.Bc1 {[%clk 00:00:46] [%emt 00:00:40]} 70...Rc6 {[%clk
00:00:35] [%emt 00:01:08]} 71.Bd2 {[%clk 00:00:49] [%emt 00:00:26]} 71...Rg6 
{[%clk 00:00:36] [%emt 00:00:30]} 72.Ka5 {[%clk 00:01:04] [%emt 00:00:15]} 
72...Kg7 {[%clk 00:00:52] [%emt 00:00:15]} 73.Bc1 {[%clk 00:00:35] [%emt
00:00:58]} 73...Kf7 {[%clk 00:01:13] [%emt 00:00:08]} 74.Bd2 {[%clk 00:00:54]
[%emt 00:00:12]} 74...Ke7 {[%clk 00:01:42] [%emt 00:00:01]} 75.Bxh6 {[%clk
00:00:33] [%emt 00:00:51]} 75...Nxh6 {[%clk 00:01:55] [%emt 00:00:17]} 76.Rb4 
{[%clk 00:01:01] [%emt 00:00:01]} 76...Nf5 {[%clk 00:01:25] [%emt 00:01:01]} 
77.Rb6 {[%clk 00:00:44] [%emt 00:00:46]} 77...Nd6 {[%clk 00:01:54] [%emt
00:00:02]} 78.Rxa6 {[%clk 00:00:45] [%emt 00:00:29]} 78...Ke6 {[%clk 00:01:45]
[%emt 00:00:39]} 79.Kb4 {[%clk 00:01:01] [%emt 00:00:13]} 79...Kd5 {[%clk
00:02:09] [%emt 00:00:07]} 80.Ra8 {[%clk 00:01:21] [%emt 00:00:10]} 80...Rg4+ 
{[%clk 00:02:19] [%emt 00:00:20]} 81.Kc3 {[%clk 00:01:32] [%emt 00:00:18]} 
81...Ne4+ {[%clk 00:02:07] [%emt 00:00:42]} 82.Kd3 {[%clk 00:01:25] [%emt
00:00:37]} 82...Rg3+ {[%clk 00:02:23] [%emt 00:00:15]} 83.Ke2 {[%clk 00:01:45]
[%emt 00:00:09]} 83...Rb3 {[%clk 00:01:44] [%emt 00:01:10]} 84.Rd8+ {[%clk
00:01:48] [%emt 00:00:27]} 84...Nd6 {[%clk 00:02:13] [%emt 00:00:01]} 85.Rd7 
{[%clk 00:01:11] [%emt 00:01:07]} 85...Ke6 {[%clk 00:02:20] [%emt 00:00:24]} 
86.Rd8 {[%clk 00:01:21] [%emt 00:00:19]} 86...Ke5 {[%clk 00:02:49] [%emt
00:00:02]} 87.Kd2 {[%clk 00:01:12] [%emt 00:00:38]} 87...Rh3 {[%clk 00:02:37]
[%emt 00:00:42]} 88.Kc2 {[%clk 00:00:48] [%emt 00:00:54]} 88...Nb5 {[%clk
00:02:08] [%emt 00:00:59]} 89.Re8+ {[%clk 00:01:05] [%emt 00:00:13]} 89...Kd4 
{[%clk 00:02:18] [%emt 00:00:20]} 90.Rd8+ {[%clk 00:01:24] [%emt 00:00:11]} 
90...Kc4 {[%clk 00:02:39] [%emt 00:00:10]} 91.Rc8+ {[%clk 00:01:46] [%emt
00:00:07]} 91...Kd5 {[%clk 00:02:53] [%emt 00:00:17]} 92.Rd8+ {[%clk 00:02:12]
[%emt 00:00:03]} 92...Kc6 {[%clk 00:02:53] [%emt 00:00:31]} 93.Rc8+ {[%clk
00:02:35] [%emt 00:00:06]} 93...Kd7 {[%clk 00:03:21] [%emt 00:00:01]} 94.Rb8 
{[%clk 00:02:37] [%emt 00:00:29]} 94...Nc7 {[%clk 00:03:38] [%emt 00:00:14]} 
95.Kd2 {[%clk 00:02:52] [%emt 00:00:14]} 95...Nd5 {[%clk 00:03:59] [%emt
00:00:09]} 96.Rg8 {[%clk 00:02:14] [%emt 00:01:07]} 96...Kd6 {[%clk 00:04:27]
[%emt 00:00:03]} 97.Kc2 {[%clk 00:02:01] [%emt 00:00:43]} 97...Kc5 {[%clk
00:04:53] [%emt 00:00:04]} 98.Rg5 {[%clk 00:01:57] [%emt 00:00:34]} 98...Rf3 
{[%clk 00:05:18] [%emt 00:00:05]} 99.Rh5 {[%clk 00:01:40] [%emt 00:00:46]} 
99...Kc4 {[%clk 00:05:44] [%emt 00:00:05]} 100.Rh4+ {[%clk 00:02:00] [%emt
00:00:10]} 100...Nf4 {[%clk 00:06:13] [%emt 00:00:01]} 101.Kd2 {[%clk 00:02:06]
[%emt 00:00:23]} 101...Kd4 {[%clk 00:06:40] [%emt 00:00:03]} 102.Kc2 {[%clk
00:02:24] [%emt 00:00:13]} 102...Kc4 {[%clk 00:07:06] [%emt 00:00:04]} 103.Kd2 
{[%clk 00:02:50] [%emt 00:00:03]} 103...Kd4 {[%clk 00:07:32] [%emt 00:00:05]} 
104.Kc2 {[%clk 00:03:16] [%emt 00:00:03]} 104...Kc4 {[%clk 00:08:00]} 1/2-1/2